Cogmind - Beta 15 @@@ ROGUE MODE // 2025.05.11 @ 15:18:39 Player: WetterLettuce Result: Destroyed by IY-5MM(g) with Salvaging Laser Performance ------------- Evolutions (1) 500 Regions Visited (6) 1200 Robots Destroyed (15) 75 Value Destroyed (330) 330 Prototype IDs (9) 180 Alien Tech Used (0) 0 Bonus (800) 800 TOTAL SCORE: 3085 Bonus ------- Registered with UFD 300 Met Optimus in HQ 500 Cogmind --------- Core Integrity 0/400 Matter 300/300 Energy 78/100 System Corruption 0% Temperature Cool (93) Movement Core (50) Location -9/Scraptown Parts ------- > --- POWER (1) -------- (None) > --- PROPULSION (2) --- (None) > --- UTILITY (4) ------ Targeting Computer > --- WEAPON (2) ------- (None) > --- INVENTORY (5) ---- Deep Structural Scanner Hardened Medium Armor Plating Tech Extrapolator Heavy Flak Cannon Companion Sword Peak State ------------ > --- POWER ------------ Ion Engine > --- PROPULSION ------- Wheel Wheel > --- UTILITY ---------- Improved Heat Sink Small Storage Unit Targeting Computer Hacking Suite > --- WEAPON ----------- Heavy Flak Cannon Long-range Missile Launcher > --- INVENTORY -------- Improved Sensor Array Hardened Medium Armor Plating Ion Cannon Assault Rifle Heavy Assault Rifle Heavy Machine Gun Advanced Assault Cannon Power Sword [Rating: 23] Favorites ----------- Power Ion Engine Engine Ion Engine Propulsion Wheel Wheel Wheel Utility Small Storage Unit Device Improved Heat Sink Storage Small Storage Unit Processor Targeting Computer Hackware Hacking Suite Weapon Assault Rifle Energy Gun EM Pulse Gun Ballistic Gun Assault Rifle Ballistic Cannon Heavy Flak Cannon Launcher Long-range Missile Launcher Slashing Weapon Companion Sword Build | -11 -10 -10 -9 -9 -9 -9 ------- Run | Yrd Mat Min Mat Sto Rec Scr Slots Evolved 2 | . . . 2 . . . Power . | . . . . . . . Propulsion . | . . . . . . . Utility 2 | . . . 2 . . . Weapon . | . . . . . . . Parts Attached 19 | 6 4 . 1 2 . 6 Power 1 | 1 . . . . . . Engine 1 | 1 . . . . . . Core . | . . . . . . . Reactor . | . . . . . . . Propulsion 5 | 2 2 . . . . 1 Treads . | . . . . . . . Leg . | . . . . . . . Wheel 5 | 2 2 . . . . 1 Hover . | . . . . . . . Flight . | . . . . . . . Utility 4 | 1 1 . 1 1 . . Device 1 | . . . 1 . . . Storage 1 | 1 . . . . . . Processor 1 | . 1 . . . . . Hackware 1 | . . . . 1 . . Protection . | . . . . . . . Artifact . | . . . . . . . Weapon 9 | 2 1 . . 1 . 5 Energy Gun 1 | 1 . . . . . . Energy Cannon . | . . . . . . . Ballistic Gun 5 | 1 1 . . 1 . 2 Ballistic Cannon 1 | . . . . . . 1 Launcher 1 | . . . . . . 1 Special Weapon . | . . . . . . . Impact Weapon . | . . . . . . . Slashing Weapon 1 | . . . . . . 1 Piercing Weapon . | . . . . . . . Special Melee Weapon . | . . . . . . . Unidentified Prototypes 1 | . . . . . . 1 Corrupted Parts 1 | . . . . 1 . . System Corruption 1 | . . . . 1 . . Parts Lost 4 | . . . . . . 4 Power 1 | . . . . . . 1 Propulsion 2 | . . . . . . 2 Utility 1 | . . . . . . 1 Weapon . | . . . . . . . Highest Loss Streak 4 | . . . . . . 4 To Critical Strikes . | . . . . . . . Average Backups 7 | . 3 7 7 7 8 7 Power . | . 1 1 1 1 1 . Propulsion . | . . 2 1 1 1 . Utility 1 | . . 1 1 1 1 2 Weapon 4 | . 1 3 3 4 5 4 Tool/Special . | . . . . . . . Unused Backups 10 | . . . . . . 10 Power 1 | . . . . . . 1 Propulsion . | . . . . . . . Utility 4 | . . . . . . 4 Weapon 5 | . . . . . . 5 Tool/Special . | . . . . . . . Average Slot Usage (%) 94 | . 90 100 88 98 100 94 Engine 11 | . 14 14 11 11 11 10 Wheel 22 | . 28 28 22 22 22 21 Device 9 | . . . 11 11 11 11 Storage 11 | . 14 14 11 11 11 11 Processor 10 | . 6 14 11 11 11 11 Hackware 9 | . . . . 10 11 11 Ballistic Gun 14 | . 16 28 22 21 22 12 Slashing Weapon 3 | . . . . . . 5 Peak Build Rating 23 | 6 7 8 11 15 15 23 Average Rating 15 | 4 6 7 10 14 15 18 On Entrance 8 | . 6 7 8 11 15 15 Naked Turns . | . . . . . . . Heaviest Build 19 | 14 14 14 15 16 16 19 Greatest Support 26 | 26 26 20 20 20 20 20 Greatest Overweight (x) 1 | . 1 . . . . . Average Overweight (x) . | . . . . . . . Largest Inventory Capacity 8 | 8 8 8 8 8 8 8 Average Capacity 7 | 6 8 8 8 8 8 7 Most Carried 8 | 2 8 8 8 8 8 8 Average Carried 7 | 1 3 7 7 7 8 7 Final Capacity 8 | 8 8 8 8 8 8 5 Final Carried 8 | 2 7 8 8 8 8 5 Class Distribution -------------------- 100% | Mutant Dominant Class ---------------- Mutant | -10/Materials Mutant | -10/Mines Mutant | -9/Materials Mutant | -9/Storage Mutant | -9/Recycling Mutant | -9/Scraptown Resources | -11 -10 -10 -9 -9 -9 -9 ----------- Run | Yrd Mat Min Mat Sto Rec Scr Matter Collected 592 | 212 102 52 36 120 . 70 Remotely . | . . . . . . . Salvage Created 482 | . 78 94 36 226 . 48 Parts 37 | . 11 6 3 16 . 1 Haulers Intercepted . | . . . . . . . Recyclers Shooed . | . . . . . . . Parts Field Recycled . | . . . . . . . Retrieved Matter . | . . . . . . . Parts Self-Destructed 1 | . . . . . . 1 Prevented . | . . . . . . . Kills | -11 -10 -10 -9 -9 -9 -9 ------- Run | Yrd Mat Min Mat Sto Rec Scr Combat Hostiles Destroyed 13 | . 3 2 1 7 . . Guns 13 | . 3 2 1 7 . . Classes Destroyed 5 | . 3 1 . 1 . . Operator 1 | . 1 . . . . . Watcher 1 | . 1 . . . . . Swarmer 7 | . 3 . . 4 . . Grunt 5 | . . 2 1 2 . . Sentry 1 | . . . . 1 . . Best Kill Streak 4 | . 3 2 1 4 . . Combat Bots Only 4 | . 3 2 1 4 . . Max Kills in Single Turn 2 | . 1 1 1 2 . . Gunslinging 1 | . . . . 1 . . Exploded . | . . . . . . . Melee . | . . . . . . . Uniques/NPCs Destroyed . | . . . . . . . Combat | -11 -10 -10 -9 -9 -9 -9 -------- Run | Yrd Mat Min Mat Sto Rec Scr Hostile Shots Fired 96 | . 11 15 4 19 . 47 Missed 24 | . 3 4 1 7 . 9 Hits 72 | . 8 11 3 12 . 38 Melee 1 | . . . . . . 1 Projectile 71 | . 8 11 3 12 . 37 Critical Strikes 4 | . . 1 . . . 3 Damage Taken 1085 | . 105 147 32 114 . 687 Core 497 | . 29 65 10 33 . 360 Absorbed by Shields . | . . . . . . . Regen/Repaired (Parts) 179 | . . . . . . 179 Core Remaining (%) 81 | 100 . 62 . . . . Volleys Fired 31 | . 8 7 6 10 . . Largest 2 | . 2 2 2 2 . . Hottest 60 | . 60 40 40 43 . . Shots Fired 62 | . 16 14 12 20 . . Gun 62 | . 16 14 12 20 . . Cannon . | . . . . . . . Launcher . | . . . . . . . Special . | . . . . . . . Kinetic 54 | . 8 14 12 20 . . Thermal . | . . . . . . . Explosive . | . . . . . . . Electromagnetic 8 | . 8 . . . . . Robot Hit Streak 8 | . 2 3 6 8 . . Robot Miss Streak 5 | . 5 1 2 4 . . Penetration Max . | . . . . . . . Secondary Targets 4 | . . 1 . 3 . . Max Gunslinging Chain 1 | . . 1 . 1 . . Shots Hit Robots 36 | . 5 10 8 12 . 1 Core Hits 21 | . 5 5 2 9 . . Critical Kills . | . . . . . . . Critical Parts Destroyed . | . . . . . . . Critical Strikes . | . . . . . . . Melee Attacks 2 | . . . . . . 2 Impact . | . . . . . . . Slashing 2 | . . . . . . 2 Piercing . | . . . . . . . Sneak Attacks . | . . . . . . . Combat Hostiles . | . . . . . . . Follow-up Attacks . | . . . . . . . Damage Inflicted 591 | . 116 123 95 178 . 79 Guns 481 | . 85 123 95 178 . . Cannons . | . . . . . . . Explosions 31 | . 31 . . . . . Melee 79 | . . . . . . 79 Ramming . | . . . . . . . Kinetic 420 | . 24 123 95 178 . . Thermal 31 | . 31 . . . . . Explosive . | . . . . . . . Electromagnetic 61 | . 61 . . . . . Impact . | . . . . . . . Slashing 79 | . . . . . . 79 Piercing . | . . . . . . . Highest Corruption 1 | . . . . 1 1 . Average Corruption 1 | . . . . 1 1 . Corruption Purged . | . . . . . . . Corruption Blocked . | . . . . . . . Effects 1 | . . . . . 1 . Message Errors 1 | . . . . . 1 . Overload Shots . | . . . . . . . Overflow Damage 60 | . . . . . . 60 Projectiles . | . . . . . . . Explosions . | . . . . . . . Melee 60 | . . . . . . 60 Knockbacks . | . . . . . . . Impact . | . . . . . . . Kinetic . | . . . . . . . Secondary . | . . . . . . . Self-Inflicted Damage 39 | . 39 . . . . . Shots 1 | . 1 . . . . . Rammed . | . . . . . . . Targets Rammed . | . . . . . . . Kicked . | . . . . . . . Crushed . | . . . . . . . Highest Temperature 28 | . 12 22 . . . 28 Average Temperature 11 | . 12 9 . . . 17 Received Heat Transfer 570 | . . 99 18 27 . 426 Siege Activations . | . . . . . . . Martial Activations . | . . . . . . . Shielding Activations . | . . . . . . . Robots Disrupted . | . . . . . . . Combat Hostiles . | . . . . . . . Robots Corrupted . | . . . . . . . Combat Hostiles . | . . . . . . . Parts Fried . | . . . . . . . Impact Corruptions . | . . . . . . . Robots Melted . | . . . . . . . Combat Hostiles . | . . . . . . . Parts Melted . | . . . . . . . Heat Transferred . | . . . . . . . Parts Sabotaged . | . . . . . . . Parts Stolen . | . . . . . . . Parts Stripped . | . . . . . . . Power Chain Reactions 1 | . 1 . . . . . Alert | -11 -10 -10 -9 -9 -9 -9 ------- Run | Yrd Mat Min Mat Sto Rec Scr Maximum Alert Level . | . . . . . . . Low Security (%) 100 | 100 100 100 100 100 100 . Level 1 . | . . . . . . . Level 2 . | . . . . . . . Level 3 . | . . . . . . . Level 4 . | . . . . . . . Level 5 . | . . . . . . . High Security . | . . . . . . . Max Security . | . . . . . . . Peak Influence 121 | . 60 50 31 121 43 . Initial 39 | . . 8 11 13 39 . Average 26 | . 31 27 4 44 29 . Influence Increases 360 | . 102 50 38 161 4 5 Destroy 0b10 Robot/C 260 | . 60 40 20 140 . . Destroy 0b10 Robot/NC 15 | . 10 . . . . 5 Destroy Leader 52 | . 12 10 10 20 . . Successful Hack 15 | . 4 . 7 . 4 . Destroy Structure 3 | . 1 . 1 1 . . Partial Spotted 15 | . 15 . . . . . Influence Decreases 360 | . 80 42 37 91 92 18 Entered New Map 126 | . . 14 19 18 62 13 Time Decay 234 | . 80 28 18 73 30 5 Squads Dispatched 3 | . 1 . 1 1 . . Investigation . | . . . . . . . Extermination . | . . . . . . . Reinforcement 3 | . 1 . 1 1 . . Assault . | . . . . . . . Garrison . | . . . . . . . Intercept . | . . . . . . . Searches Triggered . | . . . . . . . Construction Impeded . | . . . . . . . Haulers Reinforced . | . . . . . . . Active Scanning Responses . | . . . . . . . Cargo Convoy Interrupts . | . . . . . . . Stealth | -11 -10 -10 -9 -9 -9 -9 --------- Run | Yrd Mat Min Mat Sto Rec Scr Distress Signals 2 | . . . 1 1 . . Communications Jammed . | . . . . . . . Distress Signals . | . . . . . . . Times Spotted 36 | . 5 2 3 10 . 16 Peak Tracking Total 13 | . 3 2 2 5 . 13 Tactical Retreats . | . . . . . . . Traps | -11 -10 -10 -9 -9 -9 -9 ------- Run | Yrd Mat Min Mat Sto Rec Scr Traps Triggered . | . . . . . . . Indirectly . | . . . . . . . Trap Hack Attempts . | . . . . . . . Triggered . | . . . . . . . Disarmed . | . . . . . . . Reprogrammed . | . . . . . . . Reused . | . . . . . . . Traps Extracted . | . . . . . . . Installed . | . . . . . . . Triggered . | . . . . . . . Machines | -11 -10 -10 -9 -9 -9 -9 ---------- Run | Yrd Mat Min Mat Sto Rec Scr Machines Disabled . | . . . . . . . Max in Single Turn . | . . . . . . . Machines Repaired . | . . . . . . . Machines Dismantled . | . . . . . . . Machines Sabotaged . | . . . . . . . Overloaded Fab Kills . | . . . . . . . Hacking | -11 -10 -10 -9 -9 -9 -9 --------- Run | Yrd Mat Min Mat Sto Rec Scr Machines Accessed 17 | . 2 . 1 4 3 7 Terminals 8 | . 2 . 1 4 1 . Fabricators . | . . . . . . . Repair Stations . | . . . . . . . Recycling Units 2 | . . . . . 2 . Scanalyzers . | . . . . . . . Garrison Access . | . . . . . . . Total Hacks 68 | . 5 . 2 9 8 44 Successful 57 | . 2 . 1 5 5 44 Failed 11 | . 3 . 1 4 3 . Catastrophic 1 | . . . . 1 . . Database Lockouts . | . . . . . . . Manual 10 | . 3 . . 4 3 . Terminals 18 | . 5 . 2 9 2 . Fabricators . | . . . . . . . Repair Stations . | . . . . . . . Recycling Units 6 | . . . . . 6 . Scanalyzers . | . . . . . . . Garrison Access . | . . . . . . . Terminal Hacks 48 | . . . 1 3 . 44 Record 42 | . . . . . . 42 Robot Analysis 1 | . . . . 1 . . Open Door 2 | . . . . 1 . 1 Branch Access Points 1 | . . . 1 . . . Alert Level 1 | . . . . 1 . . Proto ID Catalog 1 | . . . . . . 1 Fabricator Hacks . | . . . . . . . Repair Station Hacks . | . . . . . . . Recycling Unit Hacks 2 | . . . . . 2 . Report Inventory 2 | . . . . . 2 . Scanalyzer . | . . . . . . . Garrison Access Hacks . | . . . . . . . Unauthorized Hacks 7 | . 2 . . 2 3 . Terminals 5 | . 2 . . 2 1 . Botnet 5 | . 2 . . 2 1 . Fabricators . | . . . . . . . Repair Stations . | . . . . . . . Recycling Units 2 | . . . . . 2 . Monitor 1 | . . . . . 1 . Recyclers 1 | . . . . . 1 . Scanalyzers . | . . . . . . . Garrison Access . | . . . . . . . Data Cores Recovered . | . . . . . . . Used . | . . . . . . . Hacking Detections 10 | . 2 . 1 4 3 . Full Trace Events . | . . . . . . . Feedback Events . | . . . . . . . Feedback Blocked . | . . . . . . . Robot Schematics Acquired . | . . . . . . . Robots Built . | . . . . . . . Authchips . | . . . . . . . Time . | . . . . . . . Total Robot Build Rating . | . . . . . . . Part Schematics Acquired . | . . . . . . . Parts Built . | . . . . . . . Authchips . | . . . . . . . Time . | . . . . . . . Total Part Build Rating . | . . . . . . . Parts Repaired . | . . . . . . . Time . | . . . . . . . Parts Recycled . | . . . . . . . Recycled Matter . | . . . . . . . Retrieved Matter . | . . . . . . . Retrieved Components . | . . . . . . . Parts Scanalyzed . | . . . . . . . Part Schematics Acquired . | . . . . . . . Parts Damaged . | . . . . . . . Bothacking | -11 -10 -10 -9 -9 -9 -9 ------------ Run | Yrd Mat Min Mat Sto Rec Scr Used RIF Installer . | . . . . . . . Robots Hacked . | . . . . . . . Non-combat . | . . . . . . . Combat . | . . . . . . . Robot Hacks Applied . | . . . . . . . Relay Couplers Released . | . . . . . . . Fabnet Peak Effective % . | . . . . . . . Robots Rewired . | . . . . . . . Allies Hacked . | . . . . . . . Hacks Repelled . | . . . . . . . Allies | -11 -10 -10 -9 -9 -9 -9 -------- Run | Yrd Mat Min Mat Sto Rec Scr Total Allies . | . . . . . . . Largest Group . | . . . . . . . Highest-Rated Group . | . . . . . . . Highest-Rated Ally . | . . . . . . . Total Orders . | . . . . . . . Ally Attacks . | . . . . . . . Total Damage . | . . . . . . . Kills . | . . . . . . . Allies Corrupted . | . . . . . . . Allies Melted . | . . . . . . . Intel | -11 -10 -10 -9 -9 -9 -9 ------- Run | Yrd Mat Min Mat Sto Rec Scr Active Infowar (turns) . | . . . . . . . Robot Analysis Total 1 | . . . . 1 . . Derelict Logs Recovered . | . . . . . . . Drone Launches . | . . . . . . . Drone Recoveries . | . . . . . . . Exploration | -11 -10 -10 -9 -9 -9 -9 ------------- Run | Yrd Mat Min Mat Sto Rec Scr Turns Passed 2134 | 47 167 62 116 163 67 1512 Spaces Moved 2446 | 42 152 44 119 153 84 1852 Core 3 | 1 . . . . . 2 Treads . | . . . . . . . Legs . | . . . . . . . Wheels 2443 | 41 152 44 119 153 84 1850 Hover . | . . . . . . . Flight . | . . . . . . . Fastest Speed 50 | 50 80 80 80 80 80 50 Average Speed 80 | 85 86 80 80 80 80 79 Slowest Speed 95 | 90 95 80 80 80 80 80 Overloaded Moves . | . . . . . . . Propulsion Burnouts . | . . . . . . . Robots Hopped . | . . . . . . . Potential Cave-ins . | . . . . . . . Cave-ins Triggered . | . . . . . . . Exploration Rate (%) 34 | 4 37 19 18 39 27 95 Regions Visited 6 Branch Regions 4 Pre-discovered Areas 6 | . . 1 . 1 . 4 Known Exits Taken 1 | . . . 1 . . . Unknown Exits Taken 5 | 1 1 1 . 1 1 . Scrap Searched 3 | . . . . . . 3 Spaces Dug . | . . . . . . . Terrain Destroyed 1 | . 1 . . . . . Melee . | . . . . . . . Projectile . | . . . . . . . AOE 1 | . 1 . . . . . Terrain Rammed . | . . . . . . . Walls Destroyed . | . . . . . . . Machines Disabled . | . . . . . . . Actions | -11 -10 -10 -9 -9 -9 -9 --------- Run | Yrd Mat Min Mat Sto Rec Scr Total 2541 | 49 170 56 128 171 83 1884 Wait 7 | . . 5 . 2 . . Move 2440 | 41 151 43 118 152 83 1852 Hop . | . . . . . . . Pick Up 20 | 2 5 1 2 2 . 8 Fast Attach 12 | 6 2 . . 2 . 2 Attach 4 | . 1 . 1 2 . . Detach 1 | . . . . . . 1 Swap 7 | . 1 . . 1 . 5 Drop 17 | . 2 . 1 . . 14 Fire 31 | . 8 7 6 10 . . Melee 2 | . . . . . . 2 Ram . | . . . . . . . Kick . | . . . . . . . Crush . | . . . . . . . Escape Stasis . | . . . . . . . Rewire . | . . . . . . . Trap . | . . . . . . . Miscellaneous . | . . . . . . . Route ------- -11/Scrapyard -10/Materials -10/Mines -9/Materials (discovered 3 exits: Min x2 / *Sto) -9/Storage -9/Recycling -9/Scraptown (discovered 2 exits: [*Fac x2]) History --------- Turn | Location | Event 9 | -11/Scrapyard | Discovered new exit (range 14) 48 | -11/Scrapyard | Entered Materials 102 | -10/Materials | Discovered new exit (range 14) 215 | -10/Materials | Entered Mines 216 | -10/Mines | Learned location of Storage (-9) 248 | -10/Mines | Met a Derelict bent on vengeance 264 | -10/Mines | Discovered new exit (range 9) 277 | -10/Mines | Entered Materials 277 | -9/Materials | Evolved 2 slots: Utility x2 332 | -9/Materials | Build established: Mutant 344 | -9/Materials | Identified exit to Mines 344 | -9/Materials | Identified exit to Storage 393 | -9/Materials | Entered Storage 411 | -9/Storage | Learned location of Armory (-4) 552 | -9/Storage | Used back door to open Recycling access 552 | -9/Storage | Discovered new exit (range 5) 556 | -9/Storage | Entered Recycling 601 | -9/Recycling | Scanned before Scraplab entrance 613 | -9/Recycling | Entered Scraplab 622 | -9/Recycling | Discovered new exit (range 2) 623 | -9/Recycling | Entered Scraptown 623 | -9/Scraptown | System corruption cleaned by C-Scrubber 843 | -9/Scraptown | Visited Symbiants 866 | -9/Scraptown | Visited Assassins FH 896 | -9/Scraptown | Visited Cyclists 928 | -9/Scraptown | Visited Comm Corps 1030 | -9/Scraptown | Discovered new exit (range 9) 1263 | -9/Scraptown | Visited Shadow of the Wyrm 1276 | -9/Scraptown | Visited CR-KLE's Repair Center 1285 | -9/Scraptown | CR-KLE repaired 5 parts 1297 | -9/Scraptown | Visited CPS Storage 1314 | -9/Scraptown | Visited UFD Registry 1314 | -9/Scraptown | Registered with UFD as "Hammerdriver" 1353 | -9/Scraptown | Visited Observation Area 1408 | -9/Scraptown | Visited Sword Containment 1494 | -9/Scraptown | Discovered new exit (range 5) 1519 | -9/Scraptown | Visited Cartography Club 1571 | -9/Scraptown | Learned location of Recycling (-9) 1571 | -9/Scraptown | Learned location of Warlord (-4) 1571 | -9/Scraptown | Learned location of Extension (-4) 1571 | -9/Scraptown | Learned location of Testing (-2) 1571 | -9/Scraptown | Learned 8 Materials zone layouts 1571 | -9/Scraptown | Learned 4 Access zone layouts 1571 | -9/Scraptown | Learned 8 Lower Caves zone layouts 1571 | -9/Scraptown | Learned 8 Upper Caves zone layouts 1571 | -9/Scraptown | Learned 12 Upper Caves zone layouts 1571 | -9/Scraptown | Learned 8 Proximity Caves zone layouts 1571 | -9/Scraptown | Learned Factory emergency access door positions 1571 | -9/Scraptown | Learned location of 1 exit from Upper Caves 1571 | -9/Scraptown | Learned location of 1 exit from Proximity Caves 1571 | -9/Scraptown | Learned location of 1 exit from Research 1571 | -9/Scraptown | Learned 8 Factory zone layouts 1610 | -9/Scraptown | Found Deep Structural Scanner 1644 | -9/Scraptown | Visited Derelict Rescue Squad 1668 | -9/Scraptown | Visited Supply Room 1684 | -9/Scraptown | Visited Curators Association 1823 | -9/Scraptown | Visited Science Testing Area 1845 | -9/Scraptown | Visited Science Guys 1874 | -9/Scraptown | Visited Scrapoid Pod Storage 1976 | -9/Scraptown | Met Optimus 1976 | -9/Scraptown | Accepted into 0bPrime 2081 | -9/Scraptown | Entered Cyclist Reading Room 2097 | -9/Scraptown | Civil war broke out across Scraptown 2133 | -9/Scraptown | Core integrity fell below 50% 2135 | -9/Scraptown | Destroyed by IY-5MM(g) with Salvaging Laser Last Messages --------------- Z4-0X4(c) destroyed. Dropped Adv. Assault Cannon. OC-9J5(j) overheating. I8-6HQ(j) heat short circuits Ovr. Titanium Leg. OC-9J5(j) overheating. Acquired Tech Extrapolator. Critical hit (Burn: +50). Ion Engine destroyed. Wheel destroyed. CR-KLE destroyed. Critical hit (Burn: +50). Wheel destroyed. IV-T4R(j) heat spikes uncontrollably. Dropped Sml. Storage Unit. Dropped Imp. Heat Sink. Dropped Power Sword. Hacking Suite destroyed. Companion Sword: "Sadness..." 6F-4SF(c) destroyed. Critical hit (Burn: +50). Map ----- +----------------------------------------------------+ | | | | | | | | | | | | | | | | | | | ?????????????????????????????????????????????????? | | ####???????????????#########?????????????????????? | | """#???????????????#"" ##????????????????????? | | "#???????????????#" < ! #?#################### | | " "#????########???#"" j[%#?#"""""""""#"""""""""# | | " "#???#"""""""#???#####j=!#?#" "#" "# | | " "#???#"" ""#???????#!%*#?#" """ "# | | "#???#"" ""#???????#jj #?#" "#" "" "# | | """###?#""" ""#???????# j#?#" """ "#" " "# | | #?#"" ""#??????## ###" "#" "# | | ###""" """######## ##" """ ""#"" """"""# | | # | | # | | # | | ###### ########### ##########"" """"##### | | ###### ######????## ##????????#" "#???? | | #""""" """""#####?# @j#########?#" ""#???? | | #" " " #?#!*%""""""""#?#" """#???? | | "" ""#" " " "### ###!!/ ""#?#" """#???? | | "" "#" " " "#"" """]! "#?#"""""""#???? | | "" "#""""" """""#" """x " ""#?#######?????? | | " "###### ######" !%=" """"""""#?????????????? | | "#""""" """""#" =[* g* ##"""####?????????????? | | "" ""#" " " "#" "" !% ######???????#######??? | | ## ###" " " "#" " #########????# """"#??? | | ?# " " "#"""""" ## # # #????# ||| #??? | | ?#####""""" """""####### j ## " " ##???# """"#??? | | ?????###### ######?????# *#" "#???# || #??? | | ########### #"########## %# = #???# """"#??? | | ]gg# % #???# | | #??? | | =![ # [ #???# """"#??? | | ########################%*!# #???# || #??? | | ??????????????????????#=/![# #???# #??? | | ######?????#############%==### ############ ###### | | """""#?????#"""""""" #*!!%/ | | "#?????#" #%=/! | | /*! "#?????#" "" #= = | | ] ! "#?????#" ##### | | [ ["#?????#" # "# # | | ! "#?????#" + "# # ############ #### | | ]* "#?????#" #" "# # #???# # | +----------------------------------------------------+ Best States ------------- Heat Dissipation 42 Energy Generation 10 Energy Capacity 250 Matter Stores 300 Matter Capacity 300 Sight Range 16 Terrain Scan Density 10 Evasion (%) 44 Targeting Accuracy 5 Offensive Hacking 10 Item Schematics ----------------- None Robot Schematics ------------------ None Fabricated ------------ Nothing Repaired ---------- Nothing Alien Tech Used ----------------- None Achievements -------------- None Challenges ------------ None Game ------ Seed ReflexNuclearKit Manual? 0 Play Time 00:29:06 Cumulative 84.0 hours Start 2025.05.11 @ 14:49:33 End 2025.05.11 @ 15:18:39 Sessions 1 Manual Loads 0 Difficulty Rogue Special Mode None Game No. 88 Rogue 88 Adventurer 0 Explorer 0 Win Type - Total 1 Types 1/0/0/0/0/0/0/0/0/0 Lore% 65 Gallery% 52 Achievement% 48 Wizard Run 0 Options --------- Layout 1 ASCII 0 Keyboard 0 Movement Mouse Keybinds 0 Fullscreen 2 Font 24/Smallcaps Map View 50x35 Zoom Use 0% Tactical HUD 0 Map Filters NONE Filters NONE Steam 1 RUN: f3f69517-88c4-4a75-bf97-b39dac4ec8ed